{"text_format":"1","workbook":"xlsx","n_sheets":1,"sheets":["HK-D01"],"not_rendered":{"charts":0,"images":0,"macros":0,"external_links":0,"defined_names":137,"comments":0,"pivot_tables":0},"unopened":[],"bounds":{"document_bytes":16777216,"sheet_cells":100000,"rows_first":2000,"rows_last":500,"rows_between":2000,"halvings":0,"cell_chars":16384,"cell_head_chars":4096},"cells_cut":0,"cells_raw":0,"read":"whole","date_system":"1900"}

{"sheet":"HK-D01","index":0,"n_rows":45,"n_cols":18,"rows_kept":45,"cut":false,"hidden":false,"merged":[[11,11,11,16],[5,11,5,16],[0,0,0,9],[0,11,0,16]]}
["LOPEZ LABS EMISSIONS TEST DATA FORM",null,null,null,null,null,null,null,null,null,null,"DATA INPUT SCREEN:"]
["Revised Jan 28/09"]
["RUN No.",null,{"$f":"RunNumber","v":"HKK-32"},null,"Heater ID",{"$f":"Q8","v":"HK"},null,"DATE",null,{"$f":"DATE","v":"2009-02-21"},null,"Instructions:",null,"Enter data only into fields that are"]
["Wood Moisture %",null,20,null,"Time since last burn",null,{"$f":"TimeSinceLast","v":8},"Ambient Temperature",null,{"$f":"AmbientTemperature","v":"20F"},null,null,null,"shaded like this box"]
["Total Weight lbs",null,39.700000000000003,null,"Start Time",null,{"$f":"(StartTime)","v":"20:57:00"},null,null,null,null,null,null,"Slide graph over when done and start test"]
["Kindling Weight lbs",null,3.5,null,"FUELING",null,null,null,null,null,null,"GENERAL"]
["Number of Pieces",null,17,null,"Fuel Type..........................",null,null,{"$f":"FuelType","v":"Wh. Birch"},null,null,null,"RUN No.",null,"HKK-32","DATE",null,"2009-02-21"]
["Fuel Surface/Vol",null,{"$f":"(AVERAGE(Length)+SUM(Circumf))/(WtFuel-WtKindl)","v":{"$error":"#DIV/0!"}},null,"Fuel Density......................",null,null,{"$f":"O15","v":0},null,null,null,"Time since last burn",null,8,"HEATER ID",null,"HK"]
["Average Pc. Wt. lbs",null,2.13,null,"Unburned Fuel.................",null,{"$f":"UnFuel","v":0},{"$f":"UnFuel","v":0},null,null,null,"Start Time",null,"20:57:00","Ambient Temperature",null,"20F"]
["Run Length hrs",null,0.83,null,null,null,null,null,null,null,null,null,null,null,"Weather","clear, calm"]
["Av. Stack Temp F",null,{"$f":"AVERAGE(StackTemp)","v":380.88},null,null,null,null,null,null,null,null,null,null,null,null,"\\"]
["Av. O2%",null,{"$f":"G14","v":12.73},null,"GAS DATA FROM TESTO SPREADSHEET",null,null,null,null,null,null,"FUELING"]
["Av. CO%",null,{"$f":"AVERAGE(CO)/10000","v":0.145264},null,null,"StackTemp","O2% x10","ppm CO",null,null,null,null,null,null,"Fuel Configuration:"]
["Stack Temp Factor",null,{"$f":"SQRT(528/(460+AvStackTemp))","v":0.79241000391768102},null,null,380.88,12.73,1452.64,null,null,null,"Fuel Type",null,"Wh. Birch","TeePee"]
["Stack Dilution Factor",null,{"$f":"20.9/(20.9-_AvO2)","v":2.5581395348837215}]
["Burn Rate  dry kg/hr",null,{"$f":"((WtFuel-(UnburnedFuel*(1+AvMoisture/100)))/RunLength)*(1-(AvMoisture/100))/2.2","v":17.393209200438118},null,null,null,null,null,null,null,null,"Kindling Weight",null,4.5]
["Boiling of Water Loss%",null,{"$f":"(8.05+0.0035*(AvStackTemp-70))+(2.58+0.00114*AvStackTemp)","v":12.152283199999999},null,null,null,null,null,null,null,null,"Unburned Fuel",null,0]
["CO Loss %",null,{"$f":"gmKgCO*9.75/86","v":2.4982913607355326}]
["HC Loss %",null,{"$f":"gmKgCondar*33/86","v":0.32213922419267027}]
["Dry Gas Loss %",null,{"$f":"((1.5*DilutionFactor*(AvStackTemp-70))/8600)*100","v":13.871065440778802},null,null,null,null,null,null,null,null,null,"DETAILED FUEL INFORMATION"]
["Filter Catch gm",null,{"$f":" Catch","v":2.8399999999999981E-2},null,null,null,null,null,null,null,null,null,"Piece #","Weight","Moisture","Circumf","Length","Shape"]
["g/kg    Condar",null,{"$f":"(Catch/RunLength)*3.04*(DilutionFactor)/(0.4*StackTempFactor)","v":0.83951434183544382},null,null,null,null,null,null,null,null,null,1]
["g/kg    CO",null,{"$f":"59.3*AvCO*DilutionFactor","v":22.036210976744186},null,null,null,null,null,null,null,null,null,2]
["Combustion Effic",null,{"$f":"100-COLoss-HCLoss","v":97.179569415071796},null,null,null,null,null,null,null,null,null,3]
["Heat Trans. Effic",null,{"$f":"100-DryGasLoss-BoilWaterLoss","v":73.976651359221194},null,null,null,null,null,null,null,null,null,4]
["Overall Efficiency",null,{"$f":"HTransEffic*CombustEffic/100","v":71.890191258580018},null,null,null,null,null,null,null,null,null,5]
["Filter","Clean","Dirty","Wt. of",null,null,null,null,null,null,null,null,6]
["Number","Filter Wt.","Filter Wt.","Particulat",null,null,null,null,null,null,null,null,7]
[1,1.0157,1.0426,{"$f":"IF(FiltDirty-FiltClean>0,FiltDirty-FiltClean,0)","v":2.6899999999999924E-2},null,null,null,null,null,null,null,null,8]
[2,1.006,1.0075000000000001,1.5000000000000568E-3,null,null,null,null,null,null,null,null,9]
[3,null,null,0,null,null,null,null,null,null,null,null,10]
[4,null,null,0,null,null,null,null,null,null,null,null,11]
[5,null,null,0,null,null,null,null,null,null,null,null,12]
[6,null,null,0,null,null,null,null,null,null,null,null,13]
["Ctrl 1",0,0,null,null,null,null,null,null,null,null,null,14]
["Ctrl 2",0,0,null,null,null,null,null,null,null,null,null,15]
[null,"Adjust",null,{"$f":"+COUNT(FiltClean)*(AVERAGE(CleanControl)-AVERAGE(DirtyControl))","v":0},null,null,null,null,null,null,null,null,16]
[null,"Total",null,{"$f":"SUM(D29:D34)+D37","v":2.8399999999999981E-2},null,null,null,null,null,null,null,null,17]
[null,null,null,null,null,null,null,null,null,null,null,null,18]
[null,null,null,null,null,null,null,null,null,null,null,null,19]
[null,null,null,null,null,null,null,null,null,null,null,null,null,"Shape key:",null,1,"round"]
[null,null,null,null,null,null,null,null,null,null,null,null,null,null,null,2,"half"]
[null,null,null,null,null,null,null,null,null,null,null,null,null,null,null,3,"quarter"]
[null,null,null,null,null,null,null,null,null,null,null,null,null,null,null,4,"smaller than quarter"]
[null,null,null,null,null,null,null,null,null,null,null,null,null,null,null,5,"other"]